[Event "FIDE World Rapid Chess Championship 2021"]
[White "Dubov, Daniil"]
[Black "Hovhannisyan, Robert"]
[WhiteFideId "24126055"]
[BlackFideId "13302507"]
[WhiteElo "2735"]
[BlackElo "2613"]
[Result "0-1"]
[Round "09"]
[TimeControl "900+10"]
[Date "2021.12.27"]
[WhiteClock "0:00:52"]
[BlackClock "0:00:31"]

1. c4 {[%clk 0:15:00]}  e5 {[%clk 0:15:00]} 2. Nc3 {[%clk 0:15:00]}  Bb4 {[%clk 0:15:00]} 3. Nd5 {[%clk 0:15:00]}  Be7 {[%clk 0:15:00]} 4. Nf3 {[%clk 0:15:00]}  d6 {[%clk 0:15:00]} 5. g3 {[%clk 0:15:00]}  Nf6 {[%clk 0:15:00]} 6. Nxe7 {[%clk 0:15:00]}  Qxe7 {[%clk 0:15:00]} 7. Bg2 {[%clk 0:15:00]}  O-O {[%clk 0:15:00]} 8. O-O {[%clk 0:15:00]}  c5 {[%clk 0:15:00]} 9. d3 {[%clk 0:15:00]}  h6 {[%clk 0:15:13]} 10. h3 {[%clk 0:15:15]}  Nc6 {[%clk 0:15:13]} 11. e4 {[%clk 0:15:15]}  Be6 {[%clk 0:15:13]} 12. Be3 {[%clk 0:14:06]}  a6 {[%clk 0:13:51]} 13. Nh4 {[%clk 0:14:06]}  Qd7 {[%clk 0:12:05]} 14. Kh2 {[%clk 0:13:35]}  g5 {[%clk 0:12:05]} 15. Qf3 {[%clk 0:13:12]}  Kg7 {[%clk 0:11:24]} 16. Nf5+ {[%clk 0:13:12]}  Bxf5 {[%clk 0:11:24]} 17. exf5 {[%clk 0:13:12]}  Nd4 {[%clk 0:11:24]} 18. Bxd4 {[%clk 0:10:41]}  exd4 {[%clk 0:10:22]} 19. Qxb7 {[%clk 0:10:41]}  Qxf5 {[%clk 0:08:28]} 20. Qc7 {[%clk 0:09:52]}  Rab8 {[%clk 0:08:28]} 21. b3 {[%clk 0:09:52]}  Qxd3 {[%clk 0:08:28]} 22. Qxd6 {[%clk 0:09:52]}  Qf5 {[%clk 0:08:28]} 23. Qxa6 {[%clk 0:09:52]}  Rfe8 {[%clk 0:07:26]} 24. Rae1 {[%clk 0:09:21]}  d3 {[%clk 0:07:26]} 25. Rxe8 {[%clk 0:09:21]}  Rxe8 {[%clk 0:07:26]} 26. Qd6 {[%clk 0:07:54]}  h5 {[%clk 0:07:09]} 27. a4 {[%clk 0:06:48]}  Re6 {[%clk 0:07:09]} 28. Qd8 {[%clk 0:06:48]}  Re8 {[%clk 0:07:09]} 29. Qd6 {[%clk 0:06:48]}  Re6 {[%clk 0:07:09]} 30. Qd8 {[%clk 0:06:48]}  Re2 {[%clk 0:04:12]} 31. a5 {[%clk 0:06:08]}  Ra2 {[%clk 0:04:12]} 32. Kg1 {[%clk 0:06:08]}  Ra3 {[%clk 0:03:04]} 33. Qb6 {[%clk 0:05:04]}  h4 {[%clk 0:01:03]} 34. a6 {[%clk 0:05:04]}  d2 {[%clk 0:01:03]} 35. Qd6 {[%clk 0:02:23]}  Qc2 {[%clk 0:00:27]} 36. Qxc5 {[%clk 0:02:23]}  d1=Q {[%clk 0:00:27]} 37. Qxa3 {[%clk 0:02:23]}  Qd4 {[%clk 0:00:27]} 38. gxh4 {[%clk 0:02:23]}  g4 {[%clk 0:00:27]} 39. Qa5 {[%clk 0:00:55]}  g3 {[%clk 0:00:15]} 40. Qg5+ {[%clk 0:00:55]}  Qg6 {[%clk 0:00:15]} 41. c5 {[%clk 0:00:55]}  gxf2+ {[%clk 0:00:15]} 42. Rxf2 {[%clk 0:00:55]}  Qxg5 {[%clk 0:00:15]} 43. hxg5 {[%clk 0:00:55]}  Nh5 {[%clk 0:00:15]} 44. c6 {[%clk 0:00:55]}  Nf4 {[%clk 0:00:15]} 45. Bf1 {[%clk 0:00:55]}  Qe3 {[%clk 0:00:15]} 46. c7 {[%clk 0:00:52]}  Qg3+ {[%clk 0:00:31]} 47. Rg2 {[%clk 0:00:52]}  Nxg2 {[%clk 0:00:31]} 48. c8=Q {[%clk 0:00:52]}  Ne3+ {[%clk 0:00:31]} 49. Kh1 {[%clk 0:00:52]}  Qf3+ {[%clk 0:00:31]} 0-1


[Site "http://www.Chess.com"]

[Event "FIDE World Rapid Chess Championship 2021"]
[White "Onyshchuk, Volodymyr"]
[Black "Chigaev, Maksim"]
[WhiteFideId "14114038"]
[BlackFideId "4108116"]
[WhiteElo "2687"]
[BlackElo "2605"]
[Result "1/2-1/2"]
[Round "09"]
[TimeControl "900+10"]
[Date "2021.12.27"]
[WhiteClock "0:01:51"]
[BlackClock "0:00:41"]

1. e4 {[%clk 0:15:00]}  c5 {[%clk 0:15:00]} 2. Nf3 {[%clk 0:15:00]}  d6 {[%clk 0:15:00]} 3. d4 {[%clk 0:15:00]}  cxd4 {[%clk 0:15:00]} 4. Nxd4 {[%clk 0:15:00]}  Nf6 {[%clk 0:15:00]} 5. Nc3 {[%clk 0:15:00]}  a6 {[%clk 0:15:00]} 6. a4 {[%clk 0:15:00]}  e5 {[%clk 0:15:00]} 7. Nf3 {[%clk 0:15:00]}  h6 {[%clk 0:15:00]} 8. Bc4 {[%clk 0:15:00]}  Be6 {[%clk 0:15:00]} 9. Qe2 {[%clk 0:15:00]}  Qc7 {[%clk 0:14:57]} 10. Ba2 {[%clk 0:16:17]}  Be7 {[%clk 0:14:57]} 11. O-O {[%clk 0:16:17]}  Nbd7 {[%clk 0:14:57]} 12. Rd1 {[%clk 0:16:17]}  Rc8 {[%clk 0:14:57]} 13. Nd2 {[%clk 0:15:07]}  Qc5 {[%clk 0:13:01]} 14. h3 {[%clk 0:15:07]}  Nf8 {[%clk 0:10:47]} 15. Nf1 {[%clk 0:11:57]}  Ng6 {[%clk 0:10:47]} 16. Ng3 {[%clk 0:11:33]}  O-O {[%clk 0:08:52]} 17. Nh5 {[%clk 0:10:36]}  Nxh5 {[%clk 0:08:52]} 18. Qxh5 {[%clk 0:10:36]}  Kh7 {[%clk 0:05:18]} 19. Bd5 {[%clk 0:08:11]}  Qc7 {[%clk 0:04:01]} 20. Be3 {[%clk 0:07:31]}  Bf6 {[%clk 0:02:02]} 21. Bb3 {[%clk 0:07:31]}  Nf4 {[%clk 0:02:05]} 22. Qf3 {[%clk 0:06:27]}  Qe7 {[%clk 0:01:28]} 23. Rd2 {[%clk 0:06:27]}  Bxb3 {[%clk 0:01:28]} 24. cxb3 {[%clk 0:06:27]}  Qe6 {[%clk 0:01:28]} 25. b4 {[%clk 0:06:27]}  Rc4 {[%clk 0:01:46]} 26. b5 {[%clk 0:04:03]}  axb5 {[%clk 0:01:46]} 27. axb5 {[%clk 0:04:03]}  Ng6 {[%clk 0:01:46]} 28. Rad1 {[%clk 0:04:03]}  Be7 {[%clk 0:01:46]} 29. Nd5 {[%clk 0:04:17]}  Bd8 {[%clk 0:00:28]} 30. b3 {[%clk 0:04:17]}  Rc8 {[%clk 0:00:28]} 31. Qg4 {[%clk 0:04:17]}  f5 {[%clk 0:00:28]} 32. exf5 {[%clk 0:04:17]}  Qxf5 {[%clk 0:00:28]} 33. Qxf5 {[%clk 0:04:17]}  Rxf5 {[%clk 0:00:28]} 34. Ra2 {[%clk 0:01:52]}  Rf7 {[%clk 0:00:43]} 35. Ra7 {[%clk 0:01:52]}  Nh4 {[%clk 0:00:43]} 36. Rc1 {[%clk 0:01:52]}  Rxc1+ {[%clk 0:00:43]} 37. Bxc1 {[%clk 0:01:52]}  Nf5 {[%clk 0:00:43]} 38. Ra8 {[%clk 0:01:52]}  Bh4 {[%clk 0:00:43]} 39. g3 {[%clk 0:01:52]}  Bg5 {[%clk 0:00:43]} 40. Bxg5 {[%clk 0:01:52]}  hxg5 {[%clk 0:00:43]} 41. Rd8 {[%clk 0:01:52]}  Nd4 {[%clk 0:00:43]} 42. b6 {[%clk 0:01:51]}  Nf3+ {[%clk 0:00:23]} 43. Kf1 {[%clk 0:01:51]}  Nd2+ {[%clk 0:00:23]} 44. Ke2 {[%clk 0:01:51]}  Nxb3 {[%clk 0:00:23]} 45. Rxd6 {[%clk 0:01:51]}  Nd4+ {[%clk 0:00:23]} 46. Kd3 {[%clk 0:01:51]}  Rxf2 {[%clk 0:00:23]} 47. Rd7 {[%clk 0:01:51]}  Ne6 {[%clk 0:00:23]} 48. Rxb7 {[%clk 0:01:51]}  Nc5+ {[%clk 0:00:41]} 49. Ke3 {[%clk 0:01:51]}  Rg2 {[%clk 0:00:41]} 50. Re7 {[%clk 0:01:51]}  Rxg3+ {[%clk 0:00:41]} 51. Ke2 {[%clk 0:01:51]}  Rxh3 {[%clk 0:00:41]} 52. Rxe5 {[%clk 0:01:51]}  Rb3 {[%clk 0:00:41]} 1/2-1/2


[Site "http://www.Chess.com"]

[Event "FIDE World Rapid Chess Championship 2021"]
[White "Movsesian, Sergei"]
[Black "Van Foreest, Jorden"]
[WhiteFideId "310204"]
[BlackFideId "1039784"]
[WhiteElo "2667"]
[BlackElo "2563"]
[Result "0-1"]
[Round "09"]
[TimeControl "900+10"]
[Date "2021.12.27"]
[WhiteClock "0:00:34"]
[BlackClock "0:03:06"]

1. e4 {[%clk 0:00:34]}  c6 {[%clk 0:03:06]} 2. d4 {[%clk 0:00:34]}  d5 {[%clk 0:03:06]} 3. e5 {[%clk 0:00:34]}  Bf5 {[%clk 0:03:06]} 4. Nd2 {[%clk 0:00:34]}  e6 {[%clk 0:03:06]} 5. Nb3 {[%clk 0:00:34]}  Nd7 {[%clk 0:03:06]} 6. Nf3 {[%clk 0:00:34]}  Qc7 {[%clk 0:03:06]} 7. Be2 {[%clk 0:00:34]}  f6 {[%clk 0:03:06]} 8. O-O {[%clk 0:00:34]}  fxe5 {[%clk 0:03:06]} 9. Nxe5 {[%clk 0:00:34]}  Nxe5 {[%clk 0:03:06]} 10. dxe5 {[%clk 0:00:34]}  Qxe5 {[%clk 0:03:06]} 11. Re1 {[%clk 0:00:34]}  O-O-O {[%clk 0:03:06]} 12. Nd4 {[%clk 0:00:34]}  Bd6 {[%clk 0:03:06]} 13. g3 {[%clk 0:00:34]}  Qf6 {[%clk 0:03:06]} 14. Bg4 {[%clk 0:00:34]}  h5 {[%clk 0:03:06]} 15. Bxf5 {[%clk 0:00:34]}  exf5 {[%clk 0:03:06]} 16. Re6 {[%clk 0:00:34]}  Qf7 {[%clk 0:03:06]} 17. Bg5 {[%clk 0:00:34]}  Nf6 {[%clk 0:03:06]} 18. Bxf6 {[%clk 0:00:34]}  gxf6 {[%clk 0:03:06]} 19. Qd3 {[%clk 0:00:34]}  f4 {[%clk 0:03:06]} 20. Qf5 {[%clk 0:00:34]}  Kb8 {[%clk 0:03:06]} 21. Rxf6 {[%clk 0:00:34]}  Qd7 {[%clk 0:03:06]} 22. Re1 {[%clk 0:00:34]}  fxg3 {[%clk 0:03:06]} 23. hxg3 {[%clk 0:00:34]}  h4 {[%clk 0:03:06]} 24. Qxd7 {[%clk 0:00:34]}  Rxd7 {[%clk 0:03:06]} 25. Nf5 {[%clk 0:00:34]}  Bc7 {[%clk 0:03:06]} 26. Nxh4 {[%clk 0:00:34]}  Bd8 {[%clk 0:03:06]} 27. Rf4 {[%clk 0:00:34]}  Bg5 {[%clk 0:03:06]} 28. Rg4 {[%clk 0:00:34]}  Bf6 {[%clk 0:03:06]} 29. b3 {[%clk 0:00:34]}  Kc7 {[%clk 0:03:06]} 30. Kg2 {[%clk 0:00:34]}  a5 {[%clk 0:03:06]} 31. Re6 {[%clk 0:00:34]}  Bc3 {[%clk 0:03:06]} 32. Rg5 {[%clk 0:00:34]}  Kb6 {[%clk 0:03:06]} 33. Rf5 {[%clk 0:00:34]}  Kc5 {[%clk 0:03:06]} 34. Ng6 {[%clk 0:00:34]}  Rh6 {[%clk 0:03:06]} 35. a3 {[%clk 0:00:34]}  Bb2 {[%clk 0:03:06]} 36. a4 {[%clk 0:00:34]}  Kb4 {[%clk 0:03:06]} 37. Rf3 {[%clk 0:00:34]}  Rdh7 {[%clk 0:03:06]} 38. Nf4 {[%clk 0:00:34]}  Rh1 {[%clk 0:03:06]} 39. Rfe3 {[%clk 0:00:34]}  Bd4 {[%clk 0:03:06]} 40. Re2 {[%clk 0:00:34]}  Kc3 {[%clk 0:03:06]} 41. Kf3 {[%clk 0:00:34]}  Rf7 {[%clk 0:03:06]} 42. Re7 {[%clk 0:00:34]}  Rxe7 {[%clk 0:03:06]} 43. Rxe7 {[%clk 0:00:34]}  Kxc2 {[%clk 0:03:06]} 44. Rxb7 {[%clk 0:00:34]}  Rf1 {[%clk 0:03:06]} 45. Rc7 {[%clk 0:00:34]}  Rxf2+ {[%clk 0:03:06]} 46. Kg4 {[%clk 0:00:34]}  c5 {[%clk 0:03:06]} 47. Ne6 {[%clk 0:00:34]}  Kxb3 {[%clk 0:03:06]} 48. Nxc5+ {[%clk 0:00:34]}  Bxc5 {[%clk 0:03:06]} 49. Rxc5 {[%clk 0:00:34]}  d4 {[%clk 0:03:06]} 50. Rxa5 {[%clk 0:00:34]}  d3 {[%clk 0:03:06]} 51. Rb5+ {[%clk 0:00:34]}  Kc3 {[%clk 0:03:06]} 52. Rc5+ {[%clk 0:00:34]}  Kd4 {[%clk 0:03:06]} 53. Rc8 {[%clk 0:00:34]}  d2 {[%clk 0:03:06]} 54. Rd8+ {[%clk 0:00:34]}  Ke3 {[%clk 0:03:06]} 55. Kh5 {[%clk 0:00:34]}  Rf1 {[%clk 0:03:06]} 56. Re8+ {[%clk 0:00:34]}  Kf3 {[%clk 0:03:06]} 57. Rf8+ {[%clk 0:00:34]}  Kg2 {[%clk 0:03:06]} 58. Rd8 {[%clk 0:00:34]}  d1=Q+ {[%clk 0:03:06]} 59. Rxd1 {[%clk 0:00:34]}  Rxd1 {[%clk 0:03:06]} 60. g4 {[%clk 0:00:34]}  Kf3 {[%clk 0:03:06]} 61. g5 {[%clk 0:00:34]}  Kf4 {[%clk 0:03:06]} 0-1


[Site "http://www.Chess.com"]

[Event "FIDE World Rapid Chess Championship 2021"]
[White "Firouzja, Alireza"]
[Black "Shevchenko, Kirill"]
[WhiteFideId "12573981"]
[BlackFideId "14129574"]
[WhiteElo "2656"]
[BlackElo "2508"]
[Result "1-0"]
[Round "09"]
[TimeControl "900+10"]
[Date "2021.12.27"]
[WhiteClock "0:01:04"]
[BlackClock "0:00:11"]

1. d4 {[%clk 0:15:00]}  Nf6 {[%clk 0:15:00]} 2. c4 {[%clk 0:15:00]}  g6 {[%clk 0:15:00]} 3. Nc3 {[%clk 0:15:00]}  Bg7 {[%clk 0:15:00]} 4. e4 {[%clk 0:15:00]}  d6 {[%clk 0:15:00]} 5. Nf3 {[%clk 0:15:00]}  O-O {[%clk 0:15:00]} 6. Be2 {[%clk 0:15:00]}  e5 {[%clk 0:15:00]} 7. O-O {[%clk 0:15:00]}  Nc6 {[%clk 0:15:00]} 8. d5 {[%clk 0:15:00]}  Ne7 {[%clk 0:15:00]} 9. Ne1 {[%clk 0:15:00]}  Nd7 {[%clk 0:15:00]} 10. Nd3 {[%clk 0:15:00]}  f5 {[%clk 0:15:00]} 11. f3 {[%clk 0:15:00]}  Nf6 {[%clk 0:15:58]} 12. c5 {[%clk 0:15:24]}  c6 {[%clk 0:14:43]} 13. Qb3 {[%clk 0:14:12]}  Kh8 {[%clk 0:13:41]} 14. Be3 {[%clk 0:11:06]}  fxe4 {[%clk 0:12:06]} 15. fxe4 {[%clk 0:08:25]}  cxd5 {[%clk 0:12:06]} 16. cxd6 {[%clk 0:08:25]}  Nc6 {[%clk 0:11:16]} 17. exd5 {[%clk 0:08:21]}  Nd4 {[%clk 0:06:58]} 18. Bxd4 {[%clk 0:08:21]}  exd4 {[%clk 0:06:58]} 19. Nb5 {[%clk 0:08:21]}  Bg4 {[%clk 0:07:11]} 20. Bxg4 {[%clk 0:06:27]}  Nxg4 {[%clk 0:03:38]} 21. Rxf8+ {[%clk 0:06:27]}  Bxf8 {[%clk 0:03:38]} 22. Qb4 {[%clk 0:06:27]}  Qh4 {[%clk 0:03:26]} 23. h3 {[%clk 0:04:34]}  Ne3 {[%clk 0:03:26]} 24. Qe1 {[%clk 0:04:25]}  Qe4 {[%clk 0:01:44]} 25. Qe2 {[%clk 0:04:25]}  Rd8 {[%clk 0:01:44]} 26. Re1 {[%clk 0:03:05]}  Bxd6 {[%clk 0:01:35]} 27. Nxd4 {[%clk 0:03:05]}  Qxd4 {[%clk 0:01:35]} 28. Qxe3 {[%clk 0:03:05]}  Qxd5 {[%clk 0:01:35]} 29. Kh1 {[%clk 0:03:05]}  Rf8 {[%clk 0:01:35]} 30. a3 {[%clk 0:03:05]}  a6 {[%clk 0:01:35]} 31. Nf2 {[%clk 0:00:15]}  Bc5 {[%clk 0:01:00]} 32. Qh6 {[%clk 0:00:15]}  Qf5 {[%clk 0:01:00]} 33. Ng4 {[%clk 0:00:15]}  Bd6 {[%clk 0:01:00]} 34. Qc1 {[%clk 0:00:15]}  h5 {[%clk 0:01:00]} 35. Nh2 {[%clk 0:00:15]}  Bxh2 {[%clk 0:01:00]} 36. Qh6+ {[%clk 0:00:36]}  Kg8 {[%clk 0:00:18]} 37. Re7 {[%clk 0:00:36]}  Qf1+ {[%clk 0:00:18]} 38. Kxh2 {[%clk 0:00:36]}  Qf4+ {[%clk 0:00:18]} 39. Qxf4 {[%clk 0:00:36]}  Rxf4 {[%clk 0:00:18]} 40. Rxb7 {[%clk 0:00:36]}  a5 {[%clk 0:00:18]} 41. Kg3 {[%clk 0:00:36]}  Rd4 {[%clk 0:00:18]} 42. Ra7 {[%clk 0:00:36]}  Rd2 {[%clk 0:00:18]} 43. Rxa5 {[%clk 0:00:24]}  Rxb2 {[%clk 0:00:02]} 44. Ra7 {[%clk 0:00:24]}  Ra2 {[%clk 0:00:02]} 45. h4 {[%clk 0:00:24]}  Rc2 {[%clk 0:00:02]} 46. a4 {[%clk 0:00:24]}  Rc4 {[%clk 0:00:02]} 47. a5 {[%clk 0:00:24]}  Rg4+ {[%clk 0:00:02]} 48. Kh3 {[%clk 0:00:24]}  g5 {[%clk 0:00:02]} 49. hxg5 {[%clk 0:00:24]}  Rxg5 {[%clk 0:00:02]} 50. a6 {[%clk 0:00:24]}  Ra5 {[%clk 0:00:02]} 51. Kg3 {[%clk 0:00:24]}  Ra4 {[%clk 0:00:02]} 52. Kf3 {[%clk 0:00:24]}  Kf8 {[%clk 0:00:02]} 53. Ke3 {[%clk 0:00:24]}  Ke8 {[%clk 0:00:02]} 54. g3 {[%clk 0:00:24]}  Kd8 {[%clk 0:00:02]} 55. Ra8+ {[%clk 0:00:24]}  Kc7 {[%clk 0:00:02]} 56. a7 {[%clk 0:00:41]}  Ra3+ {[%clk 0:00:03]} 57. Kf4 {[%clk 0:00:41]}  Ra4+ {[%clk 0:00:03]} 58. Kg5 {[%clk 0:00:41]}  Ra5+ {[%clk 0:00:03]} 59. Kh4 {[%clk 0:00:41]}  Kb6 {[%clk 0:00:03]} 60. Rh8 {[%clk 0:00:41]}  Rxa7 {[%clk 0:00:03]} 61. Rxh5 {[%clk 0:00:41]}  Kc6 {[%clk 0:00:03]} 62. g4 {[%clk 0:00:41]}  Kd6 {[%clk 0:00:03]} 63. Rf5 {[%clk 0:00:41]}  Ke6 {[%clk 0:00:03]} 64. Kh5 {[%clk 0:00:41]}  Ra8 {[%clk 0:00:03]} 65. Rf1 {[%clk 0:00:41]}  Rh8+ {[%clk 0:00:03]} 66. Kg5 {[%clk 0:00:41]}  Rg8+ {[%clk 0:00:03]} 67. Kh4 {[%clk 0:00:41]}  Rh8+ {[%clk 0:00:03]} 68. Kg3 {[%clk 0:00:41]}  Rg8 {[%clk 0:00:03]} 69. Rf5 {[%clk 0:00:41]}  Ra8 {[%clk 0:00:51]} 70. Kf4 {[%clk 0:00:41]}  Rb8 {[%clk 0:00:51]} 71. Kg3 {[%clk 0:00:41]}  Ra8 {[%clk 0:00:51]} 72. Rf4 {[%clk 0:00:41]}  Rg8 {[%clk 0:00:51]} 73. Kh4 {[%clk 0:00:41]}  Rh8+ {[%clk 0:00:51]} 74. Kg5 {[%clk 0:00:41]}  Rg8+ {[%clk 0:00:51]} 75. Kh5 {[%clk 0:00:41]}  Ke5 {[%clk 0:00:51]} 76. Rf5+ {[%clk 0:00:41]}  Ke6 {[%clk 0:00:51]} 77. Kh4 {[%clk 0:00:41]}  Rh8+ {[%clk 0:00:51]} 78. Kg3 {[%clk 0:00:41]}  Ra8 {[%clk 0:00:51]} 79. Rf4 {[%clk 0:00:55]}  Rg8 {[%clk 0:00:36]} 80. Kh4 {[%clk 0:00:55]}  Rh8+ {[%clk 0:00:36]} 81. Kg5 {[%clk 0:00:55]}  Rg8+ {[%clk 0:00:36]} 82. Kh6 {[%clk 0:00:55]}  Ke5 {[%clk 0:00:36]} 83. Ra4 {[%clk 0:00:55]}  Rh8+ {[%clk 0:00:36]} 84. Kg7 {[%clk 0:00:55]}  Rh4 {[%clk 0:00:36]} 85. Ra5+ {[%clk 0:00:55]}  Ke6 {[%clk 0:00:36]} 86. g5 {[%clk 0:00:55]}  Rg4 {[%clk 0:00:11]} 87. g6 {[%clk 0:01:04]}  Rg2 {[%clk 0:00:11]} 88. Ra6+ {[%clk 0:01:04]}  Ke7 {[%clk 0:00:11]} 89. Kg8 {[%clk 0:01:04]}  Rh2 {[%clk 0:00:11]} 90. g7 {[%clk 0:01:04]}  Rh4 {[%clk 0:00:11]} 91. Ra1 {[%clk 0:01:04]}  Rg4 {[%clk 0:00:11]} 92. Re1+ {[%clk 0:01:04]}  Kd6 {[%clk 0:00:11]} 93. Rh1 {[%clk 0:01:04]}  Kd5 {[%clk 0:00:11]} 1-0


[Site "http://www.Chess.com"]

[Event "FIDE World Rapid Chess Championship 2021"]
[White "Volokitin, Andrei"]
[Black "Alekseenko, Kirill"]
[WhiteFideId "14107090"]
[BlackFideId "4135539"]
[WhiteElo "2631"]
[BlackElo "2637"]
[Result "1/2-1/2"]
[Round "09"]
[TimeControl "900+10"]
[Date "2021.12.27"]
[WhiteClock "0:00:44"]
[BlackClock "0:00:17"]

1. e4 {[%clk 0:15:00]}  e5 {[%clk 0:15:00]} 2. Nf3 {[%clk 0:15:00]}  Nc6 {[%clk 0:15:00]} 3. Bc4 {[%clk 0:15:00]}  Bc5 {[%clk 0:15:00]} 4. O-O {[%clk 0:15:00]}  Nf6 {[%clk 0:15:00]} 5. d3 {[%clk 0:15:00]}  d6 {[%clk 0:15:00]} 6. c3 {[%clk 0:15:00]}  O-O {[%clk 0:15:00]} 7. Re1 {[%clk 0:15:00]}  h6 {[%clk 0:15:00]} 8. h3 {[%clk 0:14:37]}  Bb6 {[%clk 0:15:28]} 9. Bb3 {[%clk 0:14:37]}  Ne7 {[%clk 0:15:28]} 10. Nbd2 {[%clk 0:14:37]}  Ng6 {[%clk 0:15:28]} 11. Nc4 {[%clk 0:13:50]}  Be6 {[%clk 0:15:09]} 12. Bc2 {[%clk 0:13:50]}  Re8 {[%clk 0:14:09]} 13. a3 {[%clk 0:10:58]}  c6 {[%clk 0:11:57]} 14. Nxb6 {[%clk 0:10:58]}  axb6 {[%clk 0:11:57]} 15. d4 {[%clk 0:10:00]}  exd4 {[%clk 0:10:00]} 16. Nxd4 {[%clk 0:10:00]}  Bd7 {[%clk 0:10:00]} 17. Nf5 {[%clk 0:08:08]}  Bxf5 {[%clk 0:09:46]} 18. exf5 {[%clk 0:08:08]}  Rxe1+ {[%clk 0:09:46]} 19. Qxe1 {[%clk 0:08:08]}  Ne5 {[%clk 0:09:46]} 20. Bf4 {[%clk 0:08:08]}  Qe7 {[%clk 0:09:22]} 21. Rd1 {[%clk 0:06:25]}  Re8 {[%clk 0:09:22]} 22. Qd2 {[%clk 0:06:25]}  d5 {[%clk 0:07:53]} 23. a4 {[%clk 0:05:47]}  Nc4 {[%clk 0:07:53]} 24. Qc1 {[%clk 0:05:47]}  Nd6 {[%clk 0:07:53]} 25. Be3 {[%clk 0:05:47]}  Nd7 {[%clk 0:07:06]} 26. Re1 {[%clk 0:04:39]}  Nc4 {[%clk 0:05:13]} 27. Bd2 {[%clk 0:03:34]}  Qd8 {[%clk 0:05:13]} 28. Rxe8+ {[%clk 0:03:34]}  Qxe8 {[%clk 0:05:13]} 29. Bf4 {[%clk 0:03:34]}  Qe2 {[%clk 0:05:13]} 30. b3 {[%clk 0:03:34]}  Nce5 {[%clk 0:05:13]} 31. Qd2 {[%clk 0:03:34]}  Qxd2 {[%clk 0:05:13]} 32. Bxd2 {[%clk 0:03:34]}  f6 {[%clk 0:04:41]} 33. f4 {[%clk 0:03:19]}  Nf7 {[%clk 0:04:41]} 34. Kf2 {[%clk 0:03:19]}  Nd6 {[%clk 0:04:41]} 35. Kf3 {[%clk 0:03:19]}  Kf7 {[%clk 0:03:35]} 36. b4 {[%clk 0:02:51]}  b5 {[%clk 0:03:35]} 37. a5 {[%clk 0:02:51]}  b6 {[%clk 0:03:35]} 38. axb6 {[%clk 0:01:24]}  Nxb6 {[%clk 0:02:39]} 39. Be3 {[%clk 0:01:24]}  Nbc4 {[%clk 0:02:39]} 40. Bc5 {[%clk 0:01:24]}  Nd2+ {[%clk 0:02:39]} 41. Ke3 {[%clk 0:01:24]}  N2e4 {[%clk 0:02:39]} 42. Bxd6 {[%clk 0:01:24]}  Nxd6 {[%clk 0:02:39]} 43. Kd4 {[%clk 0:01:24]}  Nb7 {[%clk 0:02:39]} 44. g4 {[%clk 0:01:24]}  Ke7 {[%clk 0:02:39]} 45. Bd3 {[%clk 0:01:24]}  Kd7 {[%clk 0:02:16]} 46. Bf1 {[%clk 0:01:29]}  Nd6 {[%clk 0:02:16]} 47. Bd3 {[%clk 0:01:29]}  Kc7 {[%clk 0:02:16]} 48. Kc5 {[%clk 0:01:29]}  Nc8 {[%clk 0:02:16]} 49. Be2 {[%clk 0:01:29]}  Nb6 {[%clk 0:02:16]} 50. Bd3 {[%clk 0:01:29]}  Nd7+ {[%clk 0:01:09]} 51. Kd4 {[%clk 0:00:56]}  Kd6 {[%clk 0:01:09]} 52. Be2 {[%clk 0:00:56]}  Nb6 {[%clk 0:01:09]} 53. Bd3 {[%clk 0:00:56]}  Na4 {[%clk 0:01:09]} 54. Bf1 {[%clk 0:00:59]}  Nb2 {[%clk 0:01:09]} 55. Be2 {[%clk 0:00:59]}  Nc4 {[%clk 0:01:09]} 56. Bf1 {[%clk 0:00:59]}  Nd2 {[%clk 0:01:09]} 57. Be2 {[%clk 0:00:59]}  Nb3+ {[%clk 0:01:09]} 58. Ke3 {[%clk 0:00:59]}  d4+ {[%clk 0:01:09]} 59. cxd4 {[%clk 0:00:59]}  Nc1 {[%clk 0:01:09]} 60. g5 {[%clk 0:00:15]}  Na2 {[%clk 0:00:58]} 61. gxf6 {[%clk 0:00:15]}  gxf6 {[%clk 0:00:58]} 62. Bd1 {[%clk 0:00:15]}  Nxb4 {[%clk 0:00:58]} 63. Bb3 {[%clk 0:00:15]}  Nd5+ {[%clk 0:00:58]} 64. Kf3 {[%clk 0:00:15]}  b4 {[%clk 0:00:58]} 65. Ke4 {[%clk 0:00:15]}  Nb6 {[%clk 0:00:58]} 66. Kf3 {[%clk 0:00:15]}  h5 {[%clk 0:00:21]} 67. h4 {[%clk 0:00:20]}  c5 {[%clk 0:00:21]} 68. dxc5+ {[%clk 0:00:20]}  Kxc5 {[%clk 0:00:21]} 69. Ke4 {[%clk 0:00:20]}  Nc4 {[%clk 0:00:21]} 70. Kd3 {[%clk 0:00:20]}  Nd6 {[%clk 0:00:21]} 71. Be6 {[%clk 0:00:20]}  Nb5 {[%clk 0:00:21]} 72. Bf7 {[%clk 0:00:20]}  Nd4 {[%clk 0:00:21]} 73. Bxh5 {[%clk 0:00:20]}  Nxf5 {[%clk 0:00:21]} 74. Bg6 {[%clk 0:00:20]}  Nxh4 {[%clk 0:00:21]} 75. Be4 {[%clk 0:00:20]}  f5 {[%clk 0:00:21]} 76. Bb7 {[%clk 0:00:20]}  Ng6 {[%clk 0:00:21]} 77. Bc8 {[%clk 0:00:20]}  Nxf4+ {[%clk 0:00:17]} 78. Kd2 {[%clk 0:00:44]}  Kc4 {[%clk 0:00:17]} 79. Bxf5 {[%clk 0:00:44]}  Kb3 {[%clk 0:00:17]} 80. Bh7 {[%clk 0:00:44]}  Kb2 {[%clk 0:00:17]} 81. Bg8 {[%clk 0:00:44]}  Ng6 {[%clk 0:00:17]} 82. Bf7 {[%clk 0:00:44]}  Ne5 {[%clk 0:00:17]} 83. Bg8 {[%clk 0:00:44]}  Ka3 {[%clk 0:00:17]} 84. Kc2 {[%clk 0:00:44]}  Ka4 {[%clk 0:00:17]} 85. Bb3+ {[%clk 0:00:44]}  Kb5 {[%clk 0:00:17]} 86. Bg8 {[%clk 0:00:44]}  Kc5 {[%clk 0:00:17]} 87. Kb2 {[%clk 0:00:44]} 1/2-1/2


[Site "http://www.Chess.com"]